bitfinex/quotes_ETHUSD_20251118
["timestamp","ask_amount","ask_price","bid_price","bid_amount"]
[1763441887236,5.84692012,3020.3,3018.4,0.4938]
[1763441887237,1.70929664,3020.2,3018.4,0.4938]
[1763441887397,1.70929664,3020.2,3017.9,1.17765846]
[1763441887398,1.31249664,3019.7,3017.9,0.4938]
[1763441887599,1.31249664,3019.7,3016.8,8.81310325]
[1763441887600,0.405504,3019.1,3017.4,0.6746]
[1763441887915,0.405504,3018.9,3017.4,0.6746]
[1763441888110,0.304,3019.0,3017.4,0.1808]
[1763441888310,0.304,3019.0,3017.0,0.1808]
[1763441888311,0.90699264,3018.7,3017.0,0.1808]
[1763441888525,0.90699264,3018.9,3017.0,0.1808]
[1763441888728,0.304,3018.6,3017.0,0.1808]
[1763441889130,5.84692012,3017.9,3016.6,0.1895]
[1763441889335,0.304,3017.8,3016.6,0.1895]
[1763441889752,0.304,3017.7,3015.8,1.17765846]
[1763441889953,0.0928,3018.4,3015.9,0.4938]
[1763441890119,1.31249664,3018.0,3015.9,1.67145846]
[1763441890318,1.31249664,3018.0,3015.9,0.4938]
[1763441890319,0.405504,3017.8,3015.9,0.4938]
[1763441890731,0.90699264,3018.0,3015.9,0.4938]
[1763441891050,0.09999999,3021.1,3015.9,0.4938]
[1763441891051,0.304,3017.9,3016.1,1.17765846]
[1763441891237,0.304,3017.9,3016.0,1.17765846]
[1763441891415,0.304,3017.9,3016.1,0.4938]
[1763441891818,0.0928,3018.3,3016.1,0.4938]
[1763441892044,0.304,3018.2,3016.1,1.67145846]
[1763441892233,0.90699264,3017.3,3016.1,0.4938]
[1763441892418,0.405504,3017.8,3016.1,0.4938]
[1763441892419,0.303,3017.2,3016.1,0.4938]
[1763441892618,0.303,3017.2,3015.2,1.76656588]
[1763441892619,0.90699264,3017.3,3015.5,0.03316199]
[1763441892817,0.05,3019.8,3015.5,0.03316199]
[1763441892818,5.93972012,3018.4,3016.1,0.4938]
[1763441893048,0.304,3018.3,3016.6,1.17765846]
[1763441893457,5.84692012,3018.9,3016.7,0.4938]
[1763441893458,0.304,3018.2,3016.7,0.4938]
[1763441893641,0.0928,3018.7,3016.7,0.4938]
[1763441893827,0.304,3018.6,3016.7,0.4938]
[1763441894542,5.84692012,3018.4,3016.7,0.4938]
[1763441894843,5.84692012,3019.1,3016.8,0.4938]
[1763441895040,0.304,3019.0,3017.0,1.17765846]
[1763441895242,2.396,3018.9,3017.1,1.17765846]
[1763441895559,0.304,3018.8,3017.6,1.17765846]
[1763441895719,0.304,3018.8,3017.4,1.17765846]
[1763441895919,0.304,3018.7,3017.5,1.17765846]
[1763441896127,0.304,3018.7,3017.4,1.76656588]
[1763441896128,0.0928,3021.4,3017.6,1.67145846]
[1763441896333,5.84692012,3020.3,3017.7,1.83860431]
[1763441896532,5.84692012,3020.3,3017.4,1.76656588]
[1763441896533,0.0928,3020.2,3017.8,0.4938]
[1763441896716,0.304,3020.1,3017.8,0.4938]
[1763441896921,0.304,3020.1,3017.4,1.17765846]
[1763441896922,5.84692012,3019.3,3017.4,1.17765846]
[1763441897129,1.31249664,3019.2,3017.2,0.4938]
[1763441897360,0.405504,3019.0,3017.2,0.4938]
[1763441897534,0.303,3018.9,3017.2,0.4938]
[1763441897852,1.31249664,3018.7,3017.2,0.4938]
[1763441898054,0.303,3018.6,3017.2,0.4938]
[1763441899057,0.0928,3018.5,3016.6,0.631]
[1763441899259,0.90699264,3018.1,3016.7,0.70294326]
[1763441899460,0.0928,3018.5,3016.1,1.76756588]
[1763441899461,0.90699264,3017.6,3016.1,0.001]
[1763441899759,0.90699264,3017.6,3016.2,1.15351882]
[1763441899760,0.303,3017.5,3016.2,1.15351882]
[1763441900066,0.303,3017.5,3016.1,0.001]
[1763441900067,5.84692012,3017.3,3016.1,0.001]
[1763441900357,0.90699264,3017.2,3016.1,0.001]
[1763441900878,0.0928,3017.1,3016.1,0.001]
[1763441901039,2.03788106,3017.9,3016.1,0.001]
[1763441901040,0.303,3017.0,3016.1,0.001]
[1763441901224,0.303,3017.0,3016.2,0.7044538]
[1763441901420,0.303,3017.0,3016.1,0.001]
[1763441901657,0.90699264,3017.7,3016.1,0.001]
[1763441901830,0.303,3016.9,3016.2,0.70474186]
[1763441902156,0.99979264,3017.7,3016.3,0.70474186]
[1763441902358,5.84692012,3016.4,3016.1,0.001]
[1763441902521,1.20999264,3016.3,3016.1,0.001]
[1763441902724,1.30279264,3016.3,3016.1,0.001]
[1763441902959,0.90699264,3016.3,3016.1,0.001]
[1763441903166,0.303,3016.2,3016.1,0.001]
[1763441903472,0.90699264,3016.8,3016.1,0.001]
[1763441903674,0.303,3016.2,3016.1,0.001]
[1763441904242,0.0928,3016.9,3016.1,0.001]
[1763441904243,0.90699264,3016.8,3016.1,0.001]
[1763441904705,6.03252012,3016.9,3016.1,0.001]
[1763441904706,0.303,3016.7,3016.1,0.001]
[1763441905400,1.198,3016.5,3016.1,0.001]
[1763441905696,5.84692012,3017.3,3016.1,0.001]
[1763441905697,0.303,3016.4,3016.2,0.70710229]
[1763441905863,0.303,3016.3,3016.1,0.001]
[1763441906045,3.30299264,3016.2,3016.1,0.001]
[1763441906747,0.0928,3017.4,3016.1,0.001]
[1763441907089,0.09999999,3020.0,3016.2,1.15747716]
[1763441907090,0.0928,3017.8,3016.2,1.15747716]
[1763441907244,2.396,3017.3,3016.7,1.17765846]
[1763441907442,0.0928,3018.3,3016.8,1.88493562]
[1763441907673,0.0928,3018.3,3016.3,0.4502]
[1763441907674,2.699,3018.2,3017.0,1.17765846]
[1763441907847,2.699,3018.2,3016.9,0.70727716]
[1763441907848,2.699,3018.2,3017.1,0.70727716]
[1763441908045,0.90699264,3018.1,3017.2,0.70727716]
[1763441908249,0.90699264,3017.9,3017.3,0.70727716]
[1763441908479,0.90699264,3017.9,3016.1,0.4512]
[1763441908480,0.90699264,3017.9,3016.6,1.17765846]
[1763441908685,0.40699264,3017.9,3017.8,0.1926]
[1763441908884,1.198,3017.9,3017.8,0.89986731]
[1763441909091,0.4695,3019.7,3017.8,3.70910162]
[1763441909251,0.4695,3019.7,3018.7,1.17995706]
[1763441909451,0.4695,3019.7,3018.8,1.88722437]
[1763441909703,0.4695,3019.7,3018.9,1.88722437]
[1763441909850,0.4695,3019.7,3019.0,1.88722437]
[1763441910167,0.4695,3019.7,3018.3,1.17995706]
[1763441910168,5.84692012,3019.3,3018.3,1.17995706]
[1763441910367,5.84692012,3019.3,3018.4,0.70849701]
[1763441910672,0.588604,3019.8,3018.5,1.88845407]
[1763441910673,0.303,3019.2,3018.5,1.88845407]
[1763441910847,6.49952012,3019.8,3018.6,1.88845407]
[1763441911190,1.67949264,3019.7,3018.7,1.88845407]
[1763441911371,0.90699264,3019.2,3018.8,0.70849701]
[1763441911677,0.90699264,3019.2,3018.1,1.17995706]
[1763441911894,1.37649264,3019.2,3018.2,0.70847915]
[1763441912093,1.37649264,3019.2,3018.3,0.70847915]
[1763441912300,0.4695,3019.1,3018.4,0.70847915]
[1763441912499,0.4695,3019.1,3017.8,1.17995706]
[1763441912706,0.4695,3019.1,3017.9,1.88866007]
[1763441912861,0.90699264,3019.2,3018.1,1.17995706]
[1763441913061,0.7715,3019.1,3018.3,1.17995706]
[1763441913369,0.302,3019.0,3018.4,0.70870301]
[1763441913569,0.302,3019.0,3018.5,1.88866007]
[1763441913871,0.302,3019.0,3018.6,1.88866007]
[1763441914066,0.302,3019.0,3018.7,0.70870301]
[1763441914279,0.302,3018.9,3018.8,0.70870301]
[1763441915396,2.698,3018.9,3018.8,0.70870301]
[1763441915794,2.40699264,3018.9,3018.8,0.70870301]
[1763441915976,1.20899264,3018.9,3018.8,0.70870301]
[1763441916170,1.67059264,3018.9,3018.8,0.70870301]
[1763441916381,1.67059264,3018.9,3018.1,1.17995706]
[1763441916604,1.67059264,3018.9,3018.2,0.70744187]
[1763441916605,0.90699264,3018.8,3018.2,0.70744187]
[1763441916781,1.67059264,3018.9,3018.3,0.70744187]
[1763441916782,0.4616,3018.9,3018.3,0.70744187]
[1763441916983,0.302,3018.7,3018.4,0.70744187]
[1763441917185,0.302,3018.6,3018.5,0.70744187]
[1763441919110,0.4616,3019.5,3018.5,0.70744187]
[1763441919318,0.302,3018.6,3018.3,1.17995706]
[1763441919524,0.302,3018.6,3018.4,0.70690139]
[1763441919695,0.302,3018.6,3017.9,1.17995706]
[1763441919885,0.302,3018.6,3018.0,0.70707396]
[1763441920086,0.302,3018.6,3017.9,1.17995706]
[1763441920087,0.6117,3018.5,3018.1,0.70707396]
[1763441920292,0.90699264,3018.3,3017.2,1.17995706]
[1763441920545,0.90699264,3018.3,3016.6,2.55041413]
[1763441920546,0.90699264,3018.3,3017.3,0.7077244]
[1763441920729,0.302,3018.2,3017.4,0.7077244]
[1763441920933,0.90699264,3018.0,3016.9,1.17995706]
[1763441921114,0.90699264,3018.0,3017.0,0.70744852]
[1763441921306,0.4616,3017.9,3017.1,0.70744852]
[1763441921500,0.4616,3017.9,3017.2,0.70744852]
[1763441921712,0.302,3017.8,3017.3,0.70744852]
[1763441921916,0.90699264,3017.3,3016.2,1.17995706]
[1763441922115,0.1917,3016.9,3016.3,0.70789317]
[1763441922426,0.90699264,3016.6,3016.1,0.001]
[1763441922628,0.4616,3016.8,3016.2,0.70800334]
[1763441922800,0.302,3016.7,3016.1,0.001]
[1763441923128,0.09999999,3020.9,3016.1,0.1207]
[1763441923301,1.63677488,3021.1,3017.6,5.84692012]
[1763441923302,0.311,3019.4,3017.6,5.84692012]
[1763441923501,0.311,3019.4,3019.2,1.17546782]
[1763441923703,0.311,3019.4,3019.3,0.70773274]
[1763441924130,0.1917,3021.1,3019.3,0.70773274]
[1763441924424,0.311,3021.0,3020.3,1.17491002]
[1763441924591,0.311,3021.0,3019.4,1.16793274]
[1763441924592,0.311,3021.0,3020.4,1.87942581]
[1763441924793,0.311,3021.0,3020.5,1.87942581]
[1763441925007,0.311,3021.0,3020.8,1.17491002]
[1763441925205,0.311,3021.0,3020.9,0.70451579]
[1763441925391,2.707,3021.0,3020.9,0.70451579]
[1763441925601,3.61399264,3021.0,3020.9,0.70451579]
[1763441926000,2.707,3021.0,3020.9,0.70451579]
[1763441926196,0.002,3021.4,3020.9,0.70451579]
[1763441926396,0.002,3021.4,3020.9,1.17097772]
[1763441926397,0.311,3021.0,3020.9,1.17097772]
[1763441926727,0.311,3021.0,3020.9,1.87342775]
[1763441926944,0.311,3021.0,3020.9,0.70245003]
[1763441927144,0.311,3021.0,3020.9,1.87342775]
[1763441927443,0.002,3021.4,3020.9,1.87342775]
[1763441927746,0.311,3021.3,3021.0,0.70245003]
[1763441927942,0.311,3021.3,3021.1,0.70245003]
[1763441928244,0.002,3021.4,3021.2,0.70245003]
[1763441928411,0.002,3021.4,3021.3,0.70084112]
[1763441928617,0.313,3021.4,3021.3,0.70084112]
[1763441928818,0.002,3021.4,3021.3,0.70084112]
[1763441929014,0.312,3021.4,3021.3,0.70084112]
[1763441929214,0.002,3021.4,3021.3,1.16104112]
[1763441929524,3.1676,3021.4,3021.3,0.70084112]
[1763441929721,3.1676,3021.4,3020.1,1.17097772]
[1763441929921,2.706,3021.4,3020.2,0.70066917]
[1763441930125,0.4616,3021.3,3020.3,0.70066917]
[1763441930345,0.4616,3021.3,3020.4,0.70066917]
[1763441930576,0.1917,3020.5,3019.4,1.17097772]
[1763441930852,0.7716,3020.4,3019.5,0.70127136]
[1763441931147,0.7716,3020.4,3018.9,1.17097772]
[1763441931337,0.4616,3020.4,3019.0,2.33258091]
[1763441931538,0.1917,3020.5,3019.0,2.33258091]
[1763441931539,0.90699264,3020.2,3019.2,1.17097772]
[1763441931846,0.90699264,3020.2,3019.3,0.70140319]
[1763441932067,0.4616,3020.1,3019.4,0.70140319]
[1763441932230,0.4616,3020.1,3018.4,1.17097772]
[1763441932426,1.197,3019.5,3018.5,1.8731342]
[1763441932772,0.4616,3020.1,3018.6,0.70215648]
[1763441933047,0.405504,3020.4,3019.2,1.17097772]
[1763441933048,1.197,3019.4,3019.2,1.17097772]
[1763441933212,1.197,3019.4,3018.7,0.70215648]
[1763441933213,1.197,3019.4,3018.7,1.7699356]
[1763441933417,0.4616,3020.1,3018.8,0.70265494]
[1763441933644,2.704,3020.0,3019.0,1.17097772]
[1763441933851,0.90699264,3019.9,3019.1,0.70265494]
[1763441934065,1.36859264,3019.9,3018.5,1.17097772]
[1763441934229,0.4616,3019.8,3018.6,1.8738778]
[1763441934447,0.4616,3019.8,3018.7,0.70290008]
[1763441934632,1.6987,3019.7,3018.8,0.70290008]
[1763441934835,0.1917,3020.5,3018.9,0.70290008]
[1763441935037,2.704,3020.4,3019.2,1.17097772]
[1763441935340,2.394,3020.3,3019.7,1.17097772]
[1763441935554,2.394,3020.3,3019.5,1.7699356]
[1763441935555,0.002,3021.4,3020.1,1.17097772]
[1763441935738,0.31,3021.3,3020.5,1.17096076]
[1763441936044,0.002,3021.4,3020.5,1.17096076]
[1763441936045,0.002,3021.4,3020.6,0.70290008]
[1763441936249,0.31,3021.3,3021.0,1.17096076]
[1763441936445,0.002,3021.4,3021.1,1.87386084]
[1763441936446,0.31,3021.2,3021.1,1.87386084]
[1763441936655,0.31,3021.2,3021.1,0.70290008]
[1763441937732,0.002,3021.4,3021.1,0.70290008]
[1763441937979,0.31,3021.3,3021.2,0.70290008]
[1763441938478,0.31,3021.3,3019.6,2.96618313]
[1763441938479,1.31249664,3021.2,3019.8,1.17105052]
[1763441938783,1.31249664,3021.2,3018.8,2.96618313]
[1763441938784,6.97852557,3020.6,3019.9,0.70390582]
[1763441938940,0.90699264,3020.5,3019.3,1.17105052]
[1763441939139,1.36859264,3020.5,3019.4,0.70417657]
[1763441939445,1.36859264,3020.5,3019.5,0.70417657]
[1763441939446,0.4616,3020.4,3019.5,0.70417657]
[1763441939773,0.405504,3020.3,3018.9,1.17105052]
[1763441939974,0.309,3020.2,3019.0,0.70432499]
[1763441940273,0.90699264,3020.0,3019.1,0.70432499]
[1763441940473,0.90699264,3020.0,3019.2,0.70432499]
[1763441940774,0.4616,3019.9,3018.6,1.17105052]
[1763441940934,0.309,3019.8,3018.7,0.70439454]
[1763441941138,0.309,3019.8,3018.8,0.70439454]
[1763441941340,0.309,3019.7,3019.0,1.17105052]
[1763441941564,0.309,3019.7,3019.1,0.70439454]
[1763441941771,0.309,3019.7,3018.9,1.17105052]
[1763441941772,0.309,3019.7,3019.2,0.70439454]
[1763441941972,0.309,3019.7,3019.3,0.70439454]
[1763441942158,1.64862242,3022.3,3019.3,0.70439454]
[1763441942159,0.4616,3020.8,3019.4,0.70439454]
[1763441942363,1.6301215,3022.9,3019.5,0.70439454]
[1763441942565,0.7706,3021.3,3020.0,1.17105052]
[1763441942871,0.4616,3021.2,3020.1,0.70439454]
[1763441943070,0.4616,3021.2,3020.2,0.70439454]
[1763441943248,0.309,3021.3,3020.3,0.70439454]
[1763441943448,0.309,3021.2,3020.4,0.70439454]
[1763441943653,0.309,3021.2,3020.5,0.70439454]
[1763441943952,0.90699264,3021.0,3019.6,1.17105052]
[1763441944165,0.90699264,3021.0,3019.4,2.2301356]
[1763441944166,0.309,3020.9,3019.7,1.87481272]
[1763441944364,0.309,3020.9,3019.8,0.7037622]
[1763441944365,0.7706,3020.9,3019.8,0.7037622]
[1763441944693,0.7706,3020.9,3019.0,2.35991413]
[1763441944694,0.90699264,3020.4,3019.3,1.17105052]
[1763441944895,0.4616,3020.3,3019.4,0.7040074]
[1763441945186,0.90699264,3020.6,3019.5,0.7040074]
[1763441945365,1.506,3020.5,3019.6,0.7040074]
[1763441945616,0.309,3020.5,3019.7,2.33525792]
[1763441945738,0.309,3020.5,3019.8,0.7040074]
[1763441945941,0.309,3020.5,3019.9,0.7040074]
[1763441946175,0.309,3020.5,3020.0,0.7040074]
[1763441946489,0.309,3020.5,3020.1,0.7040074]
[1763441946645,0.309,3020.5,3020.2,0.7040074]
[1763441946844,0.309,3020.5,3020.3,0.7040074]
[1763441947091,0.309,3020.5,3020.4,0.7040074]
[1763441948380,0.1885,3021.1,3020.4,0.7040074]
[1763441948547,0.002,3021.4,3020.5,0.7040074]
[1763441948746,0.002,3021.4,3020.2,0.4754]
[1763441948747,0.7725,3021.3,3020.6,1.58319919]
[1763441948948,0.7725,3021.3,3020.7,0.70337081]
[1763441949155,0.90699264,3020.8,3020.1,0.87919179]
[1763441949379,0.1885,3020.4,3019.3,0.87919179]
[1763441949579,0.90699264,3020.2,3019.4,0.70420204]
[1763441949779,0.90699264,3020.2,3019.0,0.87919179]
[1763441949981,0.7725,3020.3,3019.1,1.58355043]
[1763441950306,0.7725,3020.3,3019.3,0.87919179]
[1763441950475,0.7725,3020.3,3019.4,0.70435864]
[1763441950678,0.90699264,3020.1,3019.5,0.70435864]
[1763441950873,0.90699264,3020.1,3018.9,0.87919179]
[1763441951072,0.4645,3020.0,3019.0,0.70472809]
[1763441951272,0.4645,3020.0,3019.1,0.70472809]
[1763441951468,0.4645,3020.0,3018.6,0.87919179]
[1763441951684,0.4645,3020.0,3018.8,0.87919179]
[1763441951875,0.4645,3020.0,3018.9,0.70552766]
[1763441952084,0.4645,3020.0,3019.0,0.70552766]
[1763441952300,0.4645,3020.0,3018.3,2.2453356]
[1763441952301,0.4645,3020.0,3019.1,0.70552766]
[1763441952507,0.90699264,3019.6,3019.2,0.70552766]
[1763441952676,0.90699264,3019.6,3018.8,0.87919179]
[1763441952877,0.653,3019.5,3018.9,0.70674599]
[1763441953121,0.653,3019.5,3017.9,2.35991413]
[1763441953122,0.307,3019.4,3018.6,0.87919179]
[1763441953294,0.7715,3019.3,3019.1,0.87919179]
[1763441953504,0.7715,3019.3,3019.0,0.87919179]
[1763441953712,0.7715,3019.3,3017.9,0.4754]
[1763441953713,0.90699264,3019.1,3018.7,0.87919179]
[1763441954019,0.405504,3019.0,3018.1,0.87919179]
[1763441954330,0.1885,3019.5,3016.9,2.96618313]
[1763441954331,0.307,3018.9,3018.7,1.17105052]
[1763441954524,0.4645,3019.3,3018.6,0.88574154]
[1763441955389,3.30099264,3019.2,3018.6,0.88574154]
[1763441955696,3.30099264,3019.2,3017.6,0.6657]
[1763441955697,0.4645,3019.3,3018.3,0.88574154]
[1763441956009,0.90699264,3018.9,3018.2,0.88574154]
[1763441956299,0.90699264,3018.3,3017.6,0.88574154]
[1763441956512,0.1885,3018.1,3017.4,0.88574154]
[1763441956680,0.1885,3018.1,3017.3,0.88574154]
[1763441957070,0.308,3018.0,3017.5,0.88574154]
[1763441957270,0.308,3018.0,3017.4,0.88574154]
[1763441957606,0.52137016,3017.9,3017.4,0.88574154]
[1763441957785,0.52137016,3017.9,3017.3,0.88574154]
[1763441958510,0.52137016,3017.9,3017.2,0.88574154]
[1763441958872,0.308,3017.8,3017.4,0.88574154]
[1763441959207,0.308,3017.8,3017.5,0.88574154]
[1763441959377,0.308,3017.8,3017.3,0.88574154]
[1763441959568,0.308,3017.8,3017.4,0.88574154]
[1763441959772,0.52137016,3017.9,3017.7,0.1991]
[1763441959970,0.308,3017.8,3017.6,1.17105052]
[1763441960806,0.308,3017.8,3017.7,0.4945]
[1763441960993,0.52137016,3017.9,3017.5,1.7699356]
[1763441961205,0.308,3017.8,3017.5,1.7699356]
[1763441962201,0.82929567,3017.8,3017.7,0.88274706]
[1763441962404,0.82929567,3017.8,3017.1,0.001]
[1763441962405,0.82929567,3017.8,3017.4,0.88274706]
[1763441962883,0.82929567,3017.8,3017.3,0.88274706]
[1763441963084,0.82929567,3017.8,3017.2,0.88274706]
[1763441964011,0.307,3017.7,3017.2,0.88274706]
[1763441964185,0.307,3017.7,3017.1,0.001]
[1763441964412,0.7961,3017.7,3017.1,0.001]
[1763441964947,0.90699264,3017.4,3017.1,0.001]
[1763441965434,0.405504,3017.1,3016.1,0.001]
[1763441965640,0.4891,3017.3,3016.1,0.001]
[1763441966029,0.405504,3017.2,3016.2,0.70564845]
[1763441966226,0.307,3017.7,3016.2,0.70564845]
[1763441966227,0.6703,3018.3,3016.3,0.70582775]
[1763441966534,0.307,3017.7,3016.5,0.88274706]
[1763441966752,0.307,3017.7,3016.6,1.58857481]
[1763441966900,0.307,3017.7,3016.8,0.88274706]
[1763441967103,0.307,3017.7,3016.9,0.70582775]
[1763441967416,0.307,3017.7,3016.6,0.4945]
[1763441967417,0.4891,3017.6,3017.0,0.70582775]
[1763441967736,0.4891,3017.6,3016.6,0.88274706]
[1763441968041,0.4891,3017.6,3016.7,0.70516847]
[1763441968337,0.4891,3017.6,3016.8,0.70516847]
[1763441968541,0.1812,3019.1,3017.5,0.1254]
[1763441968836,0.1812,3019.1,3017.9,0.88119741]
[1763441968837,7.28552557,3019.0,3017.9,0.88119741]
[1763441969029,0.7961,3019.0,3018.0,0.70516847]
[1763441969223,0.7961,3019.0,3018.1,0.70516847]
[1763441969545,0.4891,3018.9,3017.8,0.88119741]
[1763441969839,0.4891,3018.9,3017.9,0.70573371]
[1763441970020,0.4891,3018.9,3018.0,0.70573371]
[1763441970335,0.4891,3018.9,3018.1,0.70573371]
[1763441970502,0.405504,3018.8,3017.7,0.88119741]
[1763441970704,0.405504,3018.8,3017.8,0.70577647]
[1763441971033,0.92686031,3018.6,3017.1,0.48523137]
[1763441971338,0.405504,3018.6,3017.2,0.70624527]
[1763441971538,0.405504,3018.4,3017.3,0.70624527]
[1763441971838,7.38402957,3018.4,3017.4,0.70624527]
[1763441972045,7.38402957,3018.4,3016.3,0.3816]
[1763441972046,1.39609264,3018.3,3016.5,1.7699356]
[1763441972251,0.82841761,3018.2,3016.6,0.70646464]
[1763441972544,1.31751761,3018.2,3016.8,0.001]
[1763441972855,0.002,3017.8,3016.9,0.70646464]
[1763441973138,0.307,3017.7,3017.0,0.70646464]
[1763441973344,0.307,3017.7,3017.1,0.70646464]
[1763441973533,0.307,3017.7,3017.2,0.70646464]
[1763441973842,0.307,3017.7,3017.3,0.70646464]
[1763441974043,0.307,3017.7,3017.4,0.70646464]
[1763441974209,0.307,3017.7,3017.5,0.70646464]
[1763441974405,0.307,3017.7,3016.8,0.001]
[1763441974657,0.307,3017.7,3016.9,0.70703476]
[1763441974836,0.307,3017.7,3017.0,0.70703476]
[1763441975041,0.7961,3017.7,3017.1,0.70703476]
[1763441975349,3.30299264,3017.6,3017.2,0.70703476]
[1763441975506,3.30299264,3017.6,3016.8,0.001]
[1763441975507,3.30299264,3017.6,3017.3,0.70720442]
[1763441975710,3.30299264,3017.6,3016.8,0.001]
[1763441975906,3.30299264,3017.6,3016.9,0.70720304]
[1763441976141,0.90699264,3017.4,3017.0,0.70720304]
[1763441976341,0.90699264,3017.4,3017.1,0.70720304]
[1763441976544,0.90699264,3017.4,3017.2,0.18577385]
[1763441976731,0.90699264,3017.4,3016.8,1.7709356]
[1763441977121,0.306,3017.5,3016.8,0.001]
[1763441977308,0.306,3017.5,3016.8,1.7709356]
[1763441977716,0.306,3017.4,3016.8,1.7709356]
[1763441978235,0.306,3017.4,3017.1,1.7699356]
[1763441978452,0.306,3017.4,3017.3,1.7699356]
[1763441979137,0.002,3017.8,3017.3,1.7699356]
[1763441979451,0.002,3017.8,3016.8,0.3826]
[1763441979452,0.306,3017.7,3017.5,1.7699356]
[1763441979650,0.306,3017.7,3017.4,0.3816]
[1763441979841,0.002,3017.8,3017.4,0.3816]
[1763441980046,0.002,3017.8,3017.3,2.35991413]
[1763441980245,0.002,3017.8,3016.8,0.001]
[1763441980246,0.4933,3017.7,3016.8,2.36091413]
[1763441980644,0.002,3017.8,3016.8,2.36091413]
[1763441980840,0.002,3017.8,3016.8,0.001]
[1763441981057,0.306,3017.7,3016.8,0.001]
[1763441981257,0.306,3017.7,3016.8,2.36091413]
[1763441981627,0.306,3017.6,3016.8,0.001]
[1763441981871,0.306,3017.6,3016.8,2.36091413]
[1763441982532,0.306,3017.6,3016.9,2.35991413]
[1763441983363,0.306,3017.6,3017.0,2.35991413]
[1763441984454,0.306,3017.6,3017.2,2.35991413]
[1763441984660,0.52139582,3017.5,3017.2,2.35991413]
[1763441984966,0.305,3017.4,3017.2,2.35991413]
[1763441985170,0.52139582,3017.5,3017.2,2.35991413]
[1763441985365,1.198,3017.3,3017.2,2.35991413]
[1763441985563,1.198,3017.3,3017.2,1.83852726]
[1763441985763,1.198,3017.4,3017.2,1.83852726]
[1763441985969,1.198,3017.4,3016.8,2.96718313]
[1763441986170,1.198,3017.4,3016.9,2.96618313]
[1763441986371,0.305,3017.3,3016.8,2.96718313]
[1763441986663,0.305,3017.3,3016.8,0.001]
[1763441986862,0.305,3017.3,3016.8,0.3826]
[1763441987368,0.305,3017.3,3016.8,0.001]
[1763441987670,0.305,3017.3,3016.9,0.3816]
[1763441988567,0.305,3017.3,3017.0,0.7116544]
[1763441988767,0.305,3017.3,3017.1,0.7116544]
[1763441989070,0.305,3017.3,3017.2,0.19025828]
[1763441989644,0.002,3017.8,3017.2,0.57185828]
[1763441989844,0.305,3017.7,3017.2,3.34778313]
[1763441990051,0.305,3017.7,3017.3,0.3816]
[1763441990978,0.305,3017.7,3017.2,2.96618313]
[1763441991277,0.305,3017.7,3016.9,2.96618313]
[1763441991577,0.305,3017.7,3017.0,2.96618313]
[1763441992342,0.52134074,3017.6,3017.0,2.96618313]
[1763441992545,0.52134074,3017.6,3016.9,2.96618313]
[1763441992754,0.52134074,3017.6,3016.8,0.001]
[1763441993948,0.35666139,3017.6,3016.8,0.001]
[1763441994380,0.35666139,3017.6,3016.8,2.96718313]
[1763441994581,0.35666139,3017.6,3016.8,0.001]
[1763441995364,1.198,3017.5,3016.8,0.001]
[1763441995566,0.35666139,3017.6,3017.0,2.37335838]
[1763441996648,0.84996139,3017.6,3017.5,1.18790776]
[1763441997169,0.84996139,3017.6,3017.3,1.18790776]
[1763441997394,0.4933,3017.5,3017.3,1.18790776]
[1763441997593,0.4933,3017.5,3017.4,1.18790776]
[1763441998587,0.35666139,3017.6,3017.4,1.18790776]
[1763441998795,0.4933,3017.6,3017.4,1.18790776]
[1763441999354,0.307,3017.7,3017.4,1.18790776]
[1763442000480,0.002,3017.7,3017.5,1.78228123]
[1763442000688,0.002,3017.7,3017.6,1.78228123]
[1763442000889,0.9918,3017.6,3017.4,1.28315185]
[1763442001188,0.9918,3017.6,3016.8,0.001]
[1763442001189,0.92370927,3017.5,3016.8,0.001]
[1763442001389,1.31249664,3017.0,3016.9,0.71360515]
[1763442001899,1.31249664,3017.0,3016.8,0.001]
[1763442001900,2.32735269,3017.0,3016.8,0.001]
[1763442002134,0.4933,3016.9,3016.8,0.001]
[1763442002284,0.4933,3016.9,3015.3,3.46248313]
[1763442002285,0.405504,3016.8,3015.9,1.18917835]
[1763442002484,0.405504,3016.8,3015.2,2.37335838]
[1763442002485,1.31249664,3016.3,3015.2,1.18917835]
[1763442002788,1.31249664,3016.3,3015.1,1.18917835]
[1763442002985,0.1783,3015.3,3015.0,1.18917835]
[1763442003190,0.303,3015.2,3015.1,1.18917835]
[1763442003417,0.4933,3016.2,3014.5,2.37335838]
[1763442003418,0.1955,3016.4,3015.0,1.18917835]
[1763442003617,0.4933,3016.6,3015.4,1.1883452]
[1763442003618,0.303,3016.3,3015.4,1.1883452]
[1763442003807,0.303,3016.3,3015.9,1.1883452]
[1763442004208,0.90699264,3017.2,3016.0,1.1883452]
[1763442004411,6.20060668,3018.6,3017.0,1.1883452]
[1763442004713,0.1955,3019.0,3017.1,1.1883452]
[1763442004714,0.303,3017.6,3017.1,1.1883452]
[1763442004916,0.7963,3017.6,3017.0,1.1883452]
[1763442005221,0.7963,3017.6,3016.8,1.1883452]
[1763442005222,0.90699264,3017.4,3016.8,1.1883452]
[1763442005427,7.39860668,3017.5,3016.7,1.1883452]
[1763442005428,9.08990668,3017.5,3016.7,1.1883452]
[1763442005743,1.501,3017.4,3016.8,1.1883452]
[1763442005887,0.303,3017.4,3016.8,1.1883452]
[1763442006288,0.303,3017.4,3016.5,1.1883452]
[1763442006289,0.484,3017.3,3016.5,1.1883452]
[1763442006826,0.484,3017.3,3016.4,1.1883452]
[1763442007026,0.90699264,3017.2,3016.4,1.1883452]
[1763442007186,0.90699264,3017.2,3016.3,1.1883452]
[1763442007387,0.303,3017.4,3016.3,1.6565452]
[1763442007589,0.002,3017.7,3016.2,0.197]
[1763442007590,0.486,3017.7,3016.9,1.1883452]
[1763442007806,0.303,3017.6,3016.9,1.1883452]